[Event "2026 European Womens Championship"]
[Site "Batumi, GE"]
[Date "2026.06.05"]
[Round "11"]
[White "Tsolakidou, Stavroula"]
[Black "Socko, Monika"]
[Result "1-0"]
[Board "8"]
[TimeControl "5400+30"]
[WhiteFideId "4264312"]
[BlackFideId "1106619"]
[WhiteElo "2455"]
[BlackElo "2355"]
[WhiteTitle "IM"]
[BlackTitle "GM"]
[WhiteClock "0:14:09"]
[BlackClock "0:16:29"]
[Variant "Standard"]

1. e4 {[%clk 1:30:56]}  c5 {[%clk 1:30:57]} 2. Nf3 {[%clk 1:31:19]}  Nc6 {[%clk 1:31:22]} 3. Bb5 {[%clk 1:31:17]}  e6 {[%clk 1:31:47]}
4. O-O {[%clk 1:29:14]}  Nge7 {[%clk 1:32:13]} 5. Re1 {[%clk 1:29:23]}  a6 {[%clk 1:32:39]} 6. Bf1 {[%clk 1:29:42]}  d5 {[%clk 1:32:04]}
7. d3 {[%clk 1:29:39]}  d4 {[%clk 1:25:46]} 8. e5 {[%clk 1:29:34]}  Ng6 {[%clk 1:24:43]} 9. g3 {[%clk 1:27:23]}  b6 {[%clk 1:22:12]}
10. h4 {[%clk 1:23:41]}  Bb7 {[%clk 1:20:27]} 11. Bg2 {[%clk 1:14:08]}  Qc7 {[%clk 1:18:56]} 12. h5 {[%clk 1:12:40]}  Nge7 {[%clk 1:19:17]}
13. Nbd2 {[%clk 1:03:08]}  h6 {[%clk 1:18:40]} 14. Nc4 {[%clk 0:57:36]}  Nd5 {[%clk 1:18:28]} 15. Nfd2 {[%clk 0:53:38]}  b5 {[%clk 1:09:34]}
16. Bxd5 {[%clk 0:48:39]}  bxc4 {[%clk 1:09:09]} 17. Bg2 {[%clk 0:45:35]}  cxd3 {[%clk 1:06:01]} 18. cxd3 {[%clk 0:45:59]}  Be7 {[%clk 1:06:07]}
19. Nc4 {[%clk 0:42:46]}  O-O {[%clk 1:04:01]} 20. Qg4 {[%clk 0:40:55]}  Kh8 {[%clk 1:04:14]} 21. a3 {[%clk 0:40:16]}  Nb8 {[%clk 0:57:05]}
22. Be4 {[%clk 0:30:11]}  Bxe4 {[%clk 0:49:11]} 23. Qxe4 {[%clk 0:30:34]}  Nd7 {[%clk 0:49:15]} 24. Bd2 {[%clk 0:28:19]}  Rab8 {[%clk 0:46:05]}
25. Ba5 {[%clk 0:23:38]}  Qb7 {[%clk 0:44:34]} 26. Qe2 {[%clk 0:23:17]}  Qc6 {[%clk 0:38:54]} 27. f4 {[%clk 0:23:02]}  Bd8 {[%clk 0:36:59]}
28. Bxd8 {[%clk 0:10:57]}  Rfxd8 {[%clk 0:37:00]} 29. Rac1 {[%clk 0:11:11]}  Rf8 {[%clk 0:31:45]} 30. Nd6 {[%clk 0:10:01]}  Qd5 {[%clk 0:29:51]}
31. Rf1 {[%clk 0:09:21]}  f6 {[%clk 0:20:43]} 32. Nc4 {[%clk 0:09:16]}  fxe5 {[%clk 0:21:05]} 33. fxe5 {[%clk 0:09:27]}  Rxf1+ {[%clk 0:20:49]}
34. Rxf1 {[%clk 0:09:51]}  Kg8 {[%clk 0:21:01]} 35. g4 {[%clk 0:06:24]}  Rf8 {[%clk 0:19:38]} 36. Rxf8+ {[%clk 0:05:36]}  Nxf8 {[%clk 0:19:12]}
37. Qg2 {[%clk 0:05:24]}  Kf7 {[%clk 0:12:46]} 38. Qf2+ {[%clk 0:05:24]}  Ke7 {[%clk 0:12:41]} 39. g5 {[%clk 0:02:19]}  Nh7 {[%clk 0:08:32]}
40. gxh6 {[%clk 0:02:25]}  Ng5 {[%clk 0:02:46]} 41. hxg7 {[%clk 0:24:33]}  Nh3+ {[%clk 0:32:30]} 42. Kf1 {[%clk 0:24:14]}  Nxf2 {[%clk 0:20:23]}
43. g8=Q {[%clk 0:24:37]}  Nh3 {[%clk 0:20:50]} 44. Qg7+ {[%clk 0:19:18]}  Kd8 {[%clk 0:20:55]} 45. Qf8+ {[%clk 0:19:02]}  Kc7 {[%clk 0:21:22]}
46. Qd6+ {[%clk 0:17:43]}  Qxd6 {[%clk 0:16:47]} 47. exd6+ {[%clk 0:18:07]}  Kd7 {[%clk 0:17:15]} 48. h6 {[%clk 0:18:06]}  Ng5 {[%clk 0:17:43]}
49. Kg2 {[%clk 0:17:58]}  e5 {[%clk 0:18:10]} 50. Kg3 {[%clk 0:17:34]}  e4 {[%clk 0:18:36]} 51. dxe4 {[%clk 0:16:57]}  Nxe4+ {[%clk 0:19:00]}
52. Kf4 {[%clk 0:17:21]}  Nf6 {[%clk 0:19:26]} 53. Kf5 {[%clk 0:17:01]}  Nh7 {[%clk 0:19:40]} 54. Kg6 {[%clk 0:15:54]}  Nf8+ {[%clk 0:20:05]}
55. Kg7 {[%clk 0:15:52]}  Ne6 {[%clk 0:20:31]} 56. Kg8 {[%clk 0:15:39]}  Ng5 {[%clk 0:20:57]} 57. Ne5+ {[%clk 0:13:42]}  Ke8 {[%clk 0:16:00]}
58. d7+ {[%clk 0:13:55]}  Ke7 {[%clk 0:16:29]} 59. d8=Q+ {[%clk 0:14:09]} 1-0

[Event "2026 European Womens Championship"]
[Site "Batumi, GE"]
[Date "2026.06.05"]
[Round "11"]
[White "Khotenashvili, Bella"]
[Black "Iglesias, Yosha"]
[Result "1-0"]
[Board "9"]
[TimeControl "5400+30"]
[WhiteFideId "13602640"]
[BlackFideId "637823"]
[WhiteElo "2415"]
[BlackElo "2325"]
[WhiteTitle "GM"]
[BlackTitle "FM"]
[WhiteClock "0:32:57"]
[BlackClock "0:11:26"]
[Variant "Standard"]

1. Nf3 {[%clk 1:30:55]}  d5 {[%clk 1:30:55]} 2. g3 {[%clk 1:31:21]}  c6 {[%clk 1:31:04]} 3. Bg2 {[%clk 1:31:46]}  Bf5 {[%clk 1:30:52]}
4. b3 {[%clk 1:30:49]}  h6 {[%clk 1:30:27]} 5. Bb2 {[%clk 1:31:13]}  e6 {[%clk 1:30:50]} 6. O-O {[%clk 1:31:04]}  Nf6 {[%clk 1:31:08]}
7. d3 {[%clk 1:31:18]}  Be7 {[%clk 1:31:19]} 8. Nbd2 {[%clk 1:31:33]}  Bh7 {[%clk 1:28:51]} 9. Re1 {[%clk 1:30:42]}  O-O {[%clk 1:28:27]}
10. e4 {[%clk 1:30:57]}  a5 {[%clk 1:28:34]} 11. a3 {[%clk 1:31:18]}  Nbd7 {[%clk 1:25:50]} 12. Qe2 {[%clk 1:31:12]}  b5 {[%clk 1:22:42]}
13. Nd4 {[%clk 1:19:45]}  Qb6 {[%clk 1:20:24]} 14. exd5 {[%clk 1:17:29]}  cxd5 {[%clk 1:20:33]} 15. N2f3 {[%clk 1:13:02]}  e5 {[%clk 0:54:17]}
16. Nxe5 {[%clk 1:07:44]}  Nxe5 {[%clk 0:54:32]} 17. Qxe5 {[%clk 1:07:46]}  Rae8 {[%clk 0:51:42]} 18. Qf4 {[%clk 0:59:52]}  Bd6 {[%clk 0:48:08]}
19. Qd2 {[%clk 0:57:40]}  Be5 {[%clk 0:38:45]} 20. Rxe5 {[%clk 0:54:22]}  Rxe5 {[%clk 0:39:10]} 21. Nxb5 {[%clk 0:54:40]}  Re7 {[%clk 0:34:24]}
22. a4 {[%clk 0:53:22]}  Rfe8 {[%clk 0:34:48]} 23. Bd4 {[%clk 0:48:35]}  Qe6 {[%clk 0:33:03]} 24. h3 {[%clk 0:42:42]}  Bf5 {[%clk 0:26:36]}
25. Kh2 {[%clk 0:40:36]}  Nd7 {[%clk 0:21:38]} 26. Nc7 {[%clk 0:37:13]}  Qc6 {[%clk 0:14:54]} 27. Nxd5 {[%clk 0:35:23]}  Qd6 {[%clk 0:11:47]}
28. Nxe7+ {[%clk 0:35:13]}  Rxe7 {[%clk 0:11:31]} 29. Bc3 {[%clk 0:33:29]}  Ne5 {[%clk 0:11:26]} 30. Re1 {[%clk 0:32:57]} 1-0

[Event "2026 European Womens Championship"]
[Site "Batumi, GE"]
[Date "2026.06.05"]
[Round "11"]
[White "Arabidze, Meri"]
[Black "Sieber, Fiona"]
[Result "1-0"]
[Board "10"]
[TimeControl "5400+30"]
[WhiteFideId "13604040"]
[BlackFideId "12902373"]
[WhiteElo "2409"]
[BlackElo "2224"]
[WhiteTitle "IM"]
[BlackTitle "WGM"]
[WhiteClock "0:01:37"]
[BlackClock "0:08:04"]
[Variant "Standard"]

1. c4 {[%clk 1:30:54]}  Nf6 {[%clk 1:30:13]} 2. g3 {[%clk 1:31:05]}  e6 {[%clk 1:30:34]} 3. Bg2 {[%clk 1:31:17]}  d5 {[%clk 1:30:38]}
4. cxd5 {[%clk 1:31:41]}  exd5 {[%clk 1:30:58]} 5. Nf3 {[%clk 1:32:07]}  Bd6 {[%clk 1:26:40]} 6. O-O {[%clk 1:32:09]}  O-O {[%clk 1:26:57]}
7. d3 {[%clk 1:31:39]}  Re8 {[%clk 1:24:07]} 8. Nc3 {[%clk 1:28:08]}  a6 {[%clk 1:19:40]} 9. e4 {[%clk 1:16:44]}  dxe4 {[%clk 1:11:50]}
10. dxe4 {[%clk 1:17:04]}  Nc6 {[%clk 1:12:14]} 11. Re1 {[%clk 1:12:41]}  Bg4 {[%clk 1:06:06]} 12. h3 {[%clk 1:09:08]}  Bxf3 {[%clk 1:03:24]}
13. Bxf3 {[%clk 1:06:32]}  Ne5 {[%clk 1:00:07]} 14. Bg2 {[%clk 1:04:12]}  Bc5 {[%clk 0:58:56]} 15. Be3 {[%clk 0:52:55]}  Bxe3 {[%clk 0:48:46]}
16. Rxe3 {[%clk 0:53:18]}  c6 {[%clk 0:48:59]} 17. Qe2 {[%clk 0:48:46]}  Qb6 {[%clk 0:48:08]} 18. Kh1 {[%clk 0:39:39]}  Nfd7 {[%clk 0:39:51]}
19. Re1 {[%clk 0:36:37]}  f6 {[%clk 0:39:31]} 20. f4 {[%clk 0:36:14]}  Nf7 {[%clk 0:39:39]} 21. Nb1 {[%clk 0:27:34]}  Rad8 {[%clk 0:37:53]}
22. Na3 {[%clk 0:26:38]}  Qc7 {[%clk 0:36:06]} 23. Nc4 {[%clk 0:25:29]}  b5 {[%clk 0:34:59]} 24. Nd2 {[%clk 0:25:24]}  Nf8 {[%clk 0:31:58]}
25. Nf3 {[%clk 0:21:28]}  c5 {[%clk 0:29:41]} 26. b3 {[%clk 0:18:42]}  Ne6 {[%clk 0:29:24]} 27. Qf2 {[%clk 0:17:56]}  Qd6 {[%clk 0:18:14]}
28. e5 {[%clk 0:16:49]}  fxe5 {[%clk 0:18:40]} 29. Nxe5 {[%clk 0:16:39]}  Nxe5 {[%clk 0:16:01]} 30. Rxe5 {[%clk 0:16:59]}  Nc7 {[%clk 0:15:36]}
31. Kh2 {[%clk 0:15:03]}  Rxe5 {[%clk 0:14:10]} 32. Rxe5 {[%clk 0:15:16]}  Qd4 {[%clk 0:10:57]} 33. Qc2 {[%clk 0:14:05]}  Nd5 {[%clk 0:08:39]}
34. Re4 {[%clk 0:13:22]}  Qa1 {[%clk 0:08:52]} 35. Qxc5 {[%clk 0:11:18]}  Nf6 {[%clk 0:08:05]} 36. Re7 {[%clk 0:08:24]}  Qd1 {[%clk 0:05:13]}
37. Qc7 {[%clk 0:07:25]}  Kh8 {[%clk 0:03:46]} 38. Qe5 {[%clk 0:01:28]}  h6 {[%clk 0:03:13]} 39. Qe2 {[%clk 0:01:12]}  Qc1 {[%clk 0:03:30]}
40. Ra7 {[%clk 0:00:34]}  Re8 {[%clk 0:00:44]} 41. Qd3 {[%clk 0:23:59]}  Qe1 {[%clk 0:27:02]} 42. Qg6 {[%clk 0:13:50]}  Re7 {[%clk 0:26:56]}
43. Ra8+ {[%clk 0:12:49]}  Ng8 {[%clk 0:24:56]} 44. f5 {[%clk 0:11:48]}  Re2 {[%clk 0:24:44]} 45. Qc6 {[%clk 0:11:41]}  Re3 {[%clk 0:24:17]}
46. Qd6 {[%clk 0:11:09]}  Re2 {[%clk 0:22:46]} 47. Qd5 {[%clk 0:11:15]}  Re8 {[%clk 0:23:08]} 48. Rxe8 {[%clk 0:08:45]}  Qxe8 {[%clk 0:23:35]}
49. Qe6 {[%clk 0:08:54]}  Qxe6 {[%clk 0:19:40]} 50. fxe6 {[%clk 0:09:20]}  b4 {[%clk 0:20:07]} 51. Kg1 {[%clk 0:07:24]}  g5 {[%clk 0:19:45]}
52. Kf2 {[%clk 0:07:44]}  Kg7 {[%clk 0:20:10]} 53. Ke3 {[%clk 0:07:34]}  Ne7 {[%clk 0:18:07]} 54. Kd3 {[%clk 0:06:30]}  Nf5 {[%clk 0:17:30]}
55. g4 {[%clk 0:04:18]}  Nd6 {[%clk 0:17:50]} 56. Kd4 {[%clk 0:04:31]}  Nb5+ {[%clk 0:14:34]} 57. Kc5 {[%clk 0:04:50]}  Kf6 {[%clk 0:14:14]}
58. Kxb4 {[%clk 0:04:49]}  Kxe6 {[%clk 0:14:20]} 59. Ka5 {[%clk 0:02:50]}  Kd6 {[%clk 0:14:44]} 60. b4 {[%clk 0:02:27]}  Nc3 {[%clk 0:14:10]}
61. a3 {[%clk 0:02:00]}  Nb5 {[%clk 0:10:00]} 62. a4 {[%clk 0:02:18]}  Nc3 {[%clk 0:10:06]} 63. Bb7 {[%clk 0:02:08]}  Kc7 {[%clk 0:09:14]}
64. Bxa6 {[%clk 0:02:28]}  Nd5 {[%clk 0:09:27]} 65. Bf1 {[%clk 0:02:19]}  Nc3 {[%clk 0:08:46]} 66. b5 {[%clk 0:01:43]}  Nd5 {[%clk 0:08:53]}
67. Bc4 {[%clk 0:01:34]}  Nf4 {[%clk 0:08:05]} 68. b6+ {[%clk 0:01:45]}  Kb8 {[%clk 0:08:04]} 69. Kb5 {[%clk 0:01:37]} 1-0

[Event "2026 European Womens Championship"]
[Site "Batumi, GE"]
[Date "2026.06.05"]
[Round "11"]
[White "Wagner, Dinara"]
[Black "Kobak, Polina"]
[Result "1-0"]
[Board "11"]
[TimeControl "5400+30"]
[WhiteFideId "24157570"]
[BlackFideId "24269727"]
[WhiteElo "2408"]
[BlackElo "1986"]
[WhiteTitle "IM"]
[BlackTitle "WFM"]
[WhiteClock "0:10:29"]
[BlackClock "0:01:04"]
[Variant "Standard"]

1. d4 {[%clk 1:30:56]}  d5 {[%clk 1:30:49]} 2. c4 {[%clk 1:31:11]}  e6 {[%clk 1:31:15]} 3. Nc3 {[%clk 1:31:10]}  c6 {[%clk 1:31:26]}
4. e4 {[%clk 1:30:55]}  dxe4 {[%clk 1:31:50]} 5. Nxe4 {[%clk 1:31:21]}  Bb4+ {[%clk 1:32:14]} 6. Bd2 {[%clk 1:31:44]}  Qxd4 {[%clk 1:32:32]}
7. Bxb4 {[%clk 1:32:07]}  Qxe4+ {[%clk 1:32:58]} 8. Be2 {[%clk 1:32:31]}  Na6 {[%clk 1:32:10]} 9. Bc3 {[%clk 1:32:46]}  f6 {[%clk 1:32:25]}
10. Nf3 {[%clk 1:32:39]}  Ne7 {[%clk 1:32:21]} 11. O-O {[%clk 1:32:42]}  O-O {[%clk 1:31:56]} 12. Nd2 {[%clk 1:30:36]}  Qf4 {[%clk 1:23:35]}
13. Bf3 {[%clk 1:25:38]}  Rd8 {[%clk 1:18:13]} 14. b4 {[%clk 1:03:33]}  e5 {[%clk 1:04:46]} 15. Qe2 {[%clk 1:03:00]}  Nc7 {[%clk 0:43:02]}
16. Rad1 {[%clk 0:32:26]}  Bf5 {[%clk 0:31:51]} 17. Ne4 {[%clk 0:31:21]}  Bxe4 {[%clk 0:31:25]} 18. Bxe4 {[%clk 0:31:34]}  Ne6 {[%clk 0:27:28]}
19. g3 {[%clk 0:27:22]}  Qh6 {[%clk 0:26:07]} 20. b5 {[%clk 0:23:25]}  g6 {[%clk 0:17:37]} 21. bxc6 {[%clk 0:19:01]}  bxc6 {[%clk 0:17:15]}
22. f4 {[%clk 0:14:45]}  Qf8 {[%clk 0:12:11]} 23. fxe5 {[%clk 0:14:04]}  f5 {[%clk 0:12:10]} 24. Rd6 {[%clk 0:13:42]}  Ng5 {[%clk 0:07:25]}
25. Bg2 {[%clk 0:13:41]}  Qe8 {[%clk 0:06:14]} 26. e6 {[%clk 0:12:32]}  Rxd6 {[%clk 0:03:39]} 27. Qe5 {[%clk 0:12:58]}  Nxe6 {[%clk 0:03:39]}
28. Qxd6 {[%clk 0:12:10]}  Nc8 {[%clk 0:01:04]} 29. Qe5 {[%clk 0:11:06]}  Nb6 {[%clk 0:01:04]} 30. Re1 {[%clk 0:10:29]} 1-0

[Event "2026 European Womens Championship"]
[Site "Batumi, GE"]
[Date "2026.06.05"]
[Round "11"]
[White "Bivol, Alina"]
[Black "Danielian, Elina"]
[Result "1-0"]
[Board "12"]
[TimeControl "5400+30"]
[WhiteFideId "4100123"]
[BlackFideId "13300210"]
[WhiteElo "2361"]
[BlackElo "2390"]
[WhiteTitle "IM"]
[BlackTitle "GM"]
[WhiteClock "0:16:29"]
[BlackClock "0:13:31"]
[Variant "Standard"]

1. e4 {[%clk 1:30:55]}  d6 {[%clk 1:30:56]} 2. d4 {[%clk 1:31:02]}  Nf6 {[%clk 1:31:14]} 3. Nc3 {[%clk 1:31:20]}  g6 {[%clk 1:31:40]}
4. Be3 {[%clk 1:31:19]}  c6 {[%clk 1:32:08]} 5. f4 {[%clk 1:30:14]}  Ng4 {[%clk 1:27:11]} 6. Bc1 {[%clk 1:30:26]}  e5 {[%clk 1:27:13]}
7. Nf3 {[%clk 1:23:38]}  Qb6 {[%clk 1:15:28]} 8. h3 {[%clk 1:17:24]}  exd4 {[%clk 1:15:29]} 9. Qxd4 {[%clk 1:17:09]}  Qxd4 {[%clk 1:15:51]}
10. Nxd4 {[%clk 1:17:37]}  Nf6 {[%clk 1:16:15]} 11. Be3 {[%clk 1:14:28]}  Nbd7 {[%clk 1:15:31]} 12. O-O-O {[%clk 1:10:26]}  Nc5 {[%clk 1:14:12]}
13. e5 {[%clk 1:09:45]}  dxe5 {[%clk 1:08:42]} 14. fxe5 {[%clk 1:09:44]}  Nfd7 {[%clk 1:03:28]} 15. e6 {[%clk 1:03:14]}  Nxe6 {[%clk 1:01:36]}
16. Nxe6 {[%clk 0:52:55]}  fxe6 {[%clk 1:02:01]} 17. Ne4 {[%clk 0:52:53]}  Be7 {[%clk 0:38:21]} 18. Nd6+ {[%clk 0:48:36]}  Bxd6 {[%clk 0:38:46]}
19. Rxd6 {[%clk 0:49:00]}  Nb6 {[%clk 0:38:49]} 20. c4 {[%clk 0:49:19]}  O-O {[%clk 0:30:28]} 21. Be2 {[%clk 0:36:34]}  e5 {[%clk 0:29:22]}
22. g4 {[%clk 0:33:47]}  Re8 {[%clk 0:29:26]} 23. b3 {[%clk 0:33:56]}  Be6 {[%clk 0:29:39]} 24. Rhd1 {[%clk 0:31:20]}  Rac8 {[%clk 0:25:50]}
25. a4 {[%clk 0:24:58]}  Rc7 {[%clk 0:20:54]} 26. a5 {[%clk 0:25:06]}  Nc8 {[%clk 0:18:54]} 27. R6d2 {[%clk 0:21:22]}  Kg7 {[%clk 0:14:34]}
28. Bf2 {[%clk 0:19:01]}  b6 {[%clk 0:11:14]} 29. Bg3 {[%clk 0:18:16]}  Bf7 {[%clk 0:11:20]} 30. a6 {[%clk 0:15:51]}  Kf6 {[%clk 0:07:54]}
31. Rf1+ {[%clk 0:15:35]}  Kg7 {[%clk 0:08:14]} 32. Bh4 {[%clk 0:14:55]}  Be6 {[%clk 0:05:10]} 33. Bf6+ {[%clk 0:15:05]}  Kg8 {[%clk 0:05:37]}
34. Bxe5 {[%clk 0:15:10]}  Rd7 {[%clk 0:06:04]} 35. Bg3 {[%clk 0:13:44]}  Ne7 {[%clk 0:05:29]} 36. Re1 {[%clk 0:11:07]}  Red8 {[%clk 0:04:25]}
37. Rxd7 {[%clk 0:11:18]}  Rxd7 {[%clk 0:04:49]} 38. Kc2 {[%clk 0:11:28]}  Kf7 {[%clk 0:04:59]} 39. Rf1+ {[%clk 0:11:37]}  Ke8 {[%clk 0:04:43]}
40. Rf6 {[%clk 0:10:28]}  Bf7 {[%clk 0:05:10]} 41. Bd3 {[%clk 0:04:38]}  Rd8 {[%clk 0:03:13]} 42. Kc3 {[%clk 0:01:06]}  Rc8 {[%clk 0:02:59]}
43. Rf2 {[%clk 0:29:37]}  Be6 {[%clk 0:29:48]} 44. Be4 {[%clk 0:26:55]}  Rd8 {[%clk 0:22:47]} 45. Bh4 {[%clk 0:25:59]}  Rc8 {[%clk 0:21:45]}
46. Kd4 {[%clk 0:23:35]}  Bf7 {[%clk 0:18:13]} 47. Re2 {[%clk 0:20:31]}  Be6 {[%clk 0:15:56]} 48. Bd5 {[%clk 0:16:07]}  cxd5 {[%clk 0:13:31]}
49. Rxe6 {[%clk 0:16:29]} 1-0

[Event "2026 European Womens Championship"]
[Site "Batumi, GE"]
[Date "2026.06.05"]
[Round "11"]
[White "Unuk, Laura"]
[Black "Kiolbasa, Oliwia"]
[Result "1/2-1/2"]
[Board "13"]
[TimeControl "5400+30"]
[WhiteFideId "14609215"]
[BlackFideId "1154613"]
[WhiteElo "2289"]
[BlackElo "2397"]
[WhiteTitle "IM"]
[BlackTitle "IM"]
[WhiteClock "0:04:09"]
[BlackClock "0:02:40"]
[Variant "Standard"]

1. Nf3 {[%clk 1:30:40]}  d5 {[%clk 1:28:36]} 2. g3 {[%clk 1:30:55]}  Nf6 {[%clk 1:25:32]} 3. Bg2 {[%clk 1:31:11]}  e6 {[%clk 1:24:43]}
4. c4 {[%clk 1:27:07]}  Bd6 {[%clk 1:23:55]} 5. d4 {[%clk 1:25:37]}  O-O {[%clk 1:22:34]} 6. O-O {[%clk 1:25:50]}  Nbd7 {[%clk 1:22:53]}
7. Qc2 {[%clk 1:25:03]}  c6 {[%clk 1:22:13]} 8. Rd1 {[%clk 1:24:38]}  Re8 {[%clk 1:18:52]} 9. Nc3 {[%clk 1:18:35]}  dxc4 {[%clk 1:15:10]}
10. e4 {[%clk 1:18:13]}  Bf8 {[%clk 1:15:02]} 11. a4 {[%clk 1:11:33]}  a5 {[%clk 1:13:28]} 12. Qe2 {[%clk 1:05:22]}  Nb6 {[%clk 1:10:23]}
13. Ne5 {[%clk 0:49:19]}  Qe7 {[%clk 1:10:30]} 14. Be3 {[%clk 0:42:10]}  Qb4 {[%clk 1:00:53]} 15. Bd2 {[%clk 0:36:55]}  Qb3 {[%clk 0:53:37]}
16. Rdb1 {[%clk 0:35:53]}  Nfd7 {[%clk 0:49:57]} 17. Nf3 {[%clk 0:30:20]}  Ra6 {[%clk 0:43:11]} 18. Be1 {[%clk 0:28:31]}  Rd8 {[%clk 0:42:14]}
19. e5 {[%clk 0:18:07]}  Nd5 {[%clk 0:37:24]} 20. Ng5 {[%clk 0:13:05]}  h6 {[%clk 0:33:47]} 21. Nge4 {[%clk 0:12:30]}  b5 {[%clk 0:16:18]}
22. Bf1 {[%clk 0:10:28]}  b4 {[%clk 0:13:38]} 23. Nd1 {[%clk 0:07:03]}  N5b6 {[%clk 0:11:16]} 24. Ne3 {[%clk 0:07:07]}  Qd3 {[%clk 0:06:17]}
25. Qxd3 {[%clk 0:02:09]}  cxd3 {[%clk 0:06:45]} 26. Bxd3 {[%clk 0:02:35]}  Ra8 {[%clk 0:06:47]} 27. Rd1 {[%clk 0:02:17]}  Bb7 {[%clk 0:05:51]}
28. f4 {[%clk 0:00:49]}  c5 {[%clk 0:05:44]} 29. Bf2 {[%clk 0:00:37]}  cxd4 {[%clk 0:05:43]} 30. Nc2 {[%clk 0:00:54]}  Nc5 {[%clk 0:05:57]}
31. Nxc5 {[%clk 0:01:20]}  Bxc5 {[%clk 0:06:23]} 32. Be2 {[%clk 0:01:11]}  Be4 {[%clk 0:02:40]} 33. Nxd4 {[%clk 0:01:29]}  Rd5 {[%clk 0:03:05]}
34. Nb3 {[%clk 0:00:58]}  Bxf2+ {[%clk 0:00:57]} 35. Kxf2 {[%clk 0:01:25]}  Rxd1 {[%clk 0:00:42]} 36. Bxd1 {[%clk 0:01:52]}  Nc4 {[%clk 0:00:44]}
37. Nc5 {[%clk 0:01:56]}  Bg6 {[%clk 0:00:37]} 38. b3 {[%clk 0:01:52]}  Rc8 {[%clk 0:00:34]} 39. Rc1 {[%clk 0:00:38]}  Nd2 {[%clk 0:00:35]}
40. Ke3 {[%clk 0:00:32]}  Ne4 {[%clk 0:00:37]} 41. Nd3 {[%clk 0:25:12]}  Nc3 {[%clk 0:24:00]} 42. Bf3 {[%clk 0:23:48]}  Bxd3 {[%clk 0:23:02]}
43. Kxd3 {[%clk 0:24:13]}  Kf8 {[%clk 0:23:28]} 44. Rc2 {[%clk 0:17:22]}  Ke7 {[%clk 0:23:15]} 45. h4 {[%clk 0:14:55]}  f6 {[%clk 0:22:35]}
46. exf6+ {[%clk 0:13:30]}  gxf6 {[%clk 0:23:00]} 47. g4 {[%clk 0:12:30]}  Rc5 {[%clk 0:21:03]} 48. Bb7 {[%clk 0:08:51]}  e5 {[%clk 0:18:17]}
49. fxe5 {[%clk 0:05:57]}  fxe5 {[%clk 0:18:44]} 50. Rg2 {[%clk 0:04:51]}  Ke6 {[%clk 0:14:25]} 51. g5 {[%clk 0:05:02]}  hxg5 {[%clk 0:14:33]}
52. hxg5 {[%clk 0:05:28]}  Kf7 {[%clk 0:09:33]} 53. g6+ {[%clk 0:05:08]}  Kg7 {[%clk 0:10:01]} 54. Be4 {[%clk 0:05:00]}  Rc8 {[%clk 0:07:44]}
55. Rg5 {[%clk 0:03:58]}  Rc5 {[%clk 0:02:06]} 56. Ke3 {[%clk 0:03:01]}  Nd1+ {[%clk 0:01:59]} 57. Ke2 {[%clk 0:03:16]}  Nc3+ {[%clk 0:02:15]}
58. Ke3 {[%clk 0:03:42]}  Nd1+ {[%clk 0:02:40]} 59. Ke2 {[%clk 0:04:09]} 1/2-1/2

[Event "2026 European Womens Championship"]
[Site "Batumi, GE"]
[Date "2026.06.05"]
[Round "11"]
[White "Sliwicka, Alicja"]
[Black "Fataliyeva, Ulviyya"]
[Result "0-1"]
[Board "14"]
[TimeControl "5400+30"]
[WhiteFideId "1150677"]
[BlackFideId "13403052"]
[WhiteElo "2315"]
[BlackElo "2450"]
[WhiteTitle "WGM"]
[BlackTitle "IM"]
[WhiteClock "0:13:18"]
[BlackClock "0:02:48"]
[Variant "Standard"]

1. e4 {[%clk 1:30:56]}  e5 {[%clk 1:26:16]} 2. Nf3 {[%clk 1:31:17]}  Nc6 {[%clk 1:26:42]} 3. Bc4 {[%clk 1:31:39]}  Nf6 {[%clk 1:27:06]}
4. d3 {[%clk 1:32:04]}  h6 {[%clk 1:27:16]} 5. c3 {[%clk 1:32:16]}  d6 {[%clk 1:24:47]} 6. O-O {[%clk 1:31:30]}  g6 {[%clk 1:24:59]}
7. b4 {[%clk 1:26:14]}  Bg7 {[%clk 1:24:40]} 8. a4 {[%clk 1:26:16]}  O-O {[%clk 1:23:35]} 9. a5 {[%clk 1:25:12]}  a6 {[%clk 1:23:13]}
10. Qb3 {[%clk 1:18:49]}  Ne7 {[%clk 1:20:53]} 11. Re1 {[%clk 1:16:53]}  g5 {[%clk 1:18:40]} 12. Be3 {[%clk 1:09:25]}  Ng6 {[%clk 1:18:20]}
13. Na3 {[%clk 0:57:20]}  Nh5 {[%clk 1:11:31]} 14. d4 {[%clk 0:52:40]}  Qf6 {[%clk 1:08:42]} 15. dxe5 {[%clk 0:51:51]}  dxe5 {[%clk 1:07:54]}
16. Bf1 {[%clk 0:47:46]}  Nhf4 {[%clk 1:06:37]} 17. Nd2 {[%clk 0:43:11]}  h5 {[%clk 1:05:00]} 18. b5 {[%clk 0:39:54]}  Rd8 {[%clk 1:01:43]}
19. Rad1 {[%clk 0:35:25]}  Bg4 {[%clk 0:57:31]} 20. f3 {[%clk 0:31:49]}  Be6 {[%clk 0:57:44]} 21. Ndc4 {[%clk 0:30:04]}  g4 {[%clk 0:56:03]}
22. Rxd8+ {[%clk 0:30:21]}  Rxd8 {[%clk 0:55:25]} 23. fxg4 {[%clk 0:30:42]}  Nh4 {[%clk 0:48:43]} 24. Rd1 {[%clk 0:28:03]}  Rxd1 {[%clk 0:45:39]}
25. Qxd1 {[%clk 0:28:32]}  Bxg4 {[%clk 0:30:46]} 26. Qc2 {[%clk 0:26:43]}  Qg6 {[%clk 0:26:23]} 27. Kh1 {[%clk 0:19:44]}  axb5 {[%clk 0:25:20]}
28. Nxb5 {[%clk 0:20:03]}  Be2 {[%clk 0:25:10]} 29. Bxf4 {[%clk 0:08:53]}  Bxf1 {[%clk 0:25:30]} 30. Bg3 {[%clk 0:07:37]}  Bxg2+ {[%clk 0:25:15]}
31. Kg1 {[%clk 0:08:02]}  Bxe4 {[%clk 0:24:58]} 32. Qd1 {[%clk 0:07:43]}  Nf3+ {[%clk 0:24:00]} 33. Kf2 {[%clk 0:07:11]}  Qf6 {[%clk 0:15:37]}
34. Ke2 {[%clk 0:05:22]}  Nxh2 {[%clk 0:13:36]} 35. Ke3 {[%clk 0:02:14]}  Nf1+ {[%clk 0:12:30]} 36. Kxe4 {[%clk 0:02:39]}  Nxg3+ {[%clk 0:12:56]}
37. Kd3 {[%clk 0:02:48]}  Qf5+ {[%clk 0:13:18]} 0-1